fUSD/lending_fUSD_20240916
["ID","MTS","AMOUNT","RATE_DAILY","PERIOD"]
[338311248,1726488721877,-540.01,0.00014977,2]
[338311249,1726488721887,-540.01,0.00014977,2]
[338311250,1726488721896,-540.01,0.00014977,2]
[338311251,1726488721905,-540.16921689,0.00014977,2]
[338311252,1726488721914,-514.98,0.00014977,2]
[338311253,1726488721927,-514.98,0.00014977,2]
[338311254,1726488721936,-514.98,0.00014977,2]
[338311255,1726488721945,-514.98,0.00014977,2]
[338311256,1726488721954,-515.17342502,0.00014977,2]
[338311257,1726488721963,-511.84,0.00014977,2]
[338311258,1726488721972,-511.84,0.00014977,2]
[338311259,1726488721982,-501.61,0.00014977,2]
[338311260,1726488721991,-577.93,0.00014977,2]
[338311261,1726488722002,-577.93,0.00014977,2]
[338311262,1726488722012,-577.93,0.00014977,2]
[338311263,1726488722022,-577.93,0.00014977,2]
[338311264,1726488722031,-578.03049328,0.00014977,2]
[338311265,1726488722040,-515.06,0.00014977,2]
[338311266,1726488722049,-515.06,0.00014977,2]
[338311267,1726488722058,-515.06,0.00014977,2]
[338311268,1726488722067,-515.06,0.00014977,2]
[338311269,1726488722076,-515.11964244,0.00014977,2]
[338311270,1726488722085,-545.11,0.00014977,2]
[338311271,1726488722095,-500.0,0.00014977,2]
[338311272,1726488722104,-610.14,0.00014977,2]
[338311273,1726488722113,-500.0,0.00014977,2]
[338311274,1726488722122,-1034.14,0.00014977,2]
[338311275,1726488722131,-1034.14,0.00014977,2]
[338311276,1726488722140,-1034.14,0.00014977,2]
[338311277,1726488722149,-1034.14,0.00014977,2]
[338311278,1726488722158,-1034.3577364,0.00014977,2]
[338311279,1726488722166,-802.86,0.00014977,2]
[338311280,1726488722176,-1459.96,0.00014977,2]
[338311281,1726488722185,-1459.96,0.00014977,2]
[338311282,1726488722194,-1633.26,0.00014977,2]
[338311283,1726488722203,-2887.15,0.00014977,2]
[338311284,1726488722213,-1935.28,0.00014977,2]
[338311285,1726488722222,-1935.28,0.00014977,2]
[338311286,1726488722231,-693.52,0.00014977,2]
[338311287,1726488722239,-2640.09,0.00014977,2]
[338311288,1726488722249,-583.11,0.00014977,2]
[338311289,1726488722259,-583.11,0.00014977,2]
[338311290,1726488722268,-500.0,0.00014977,2]
[338311291,1726488722276,-500.0,0.00014977,2]
[338311292,1726488722285,-500.0,0.00014977,2]
[338311293,1726488722295,-500.0,0.00014977,2]
[338311294,1726488722303,-500.0,0.00014977,2]
[338311295,1726488722312,-500.0,0.00014977,2]
[338311296,1726488722321,-677.08,0.00014977,2]
[338311297,1726488722330,-643.47,0.00014977,2]
[338311298,1726488722339,-500.0,0.00014977,2]
[338311299,1726488722348,-1209.6,0.00014977,2]
[338311300,1726488722502,-500.0,0.00014977,2]
[338311301,1726488722513,-1190.85,0.00014977,2]
[338311302,1726488722522,-500.0,0.00014977,2]
[338311303,1726488722531,-500.0,0.00014977,2]
[338311304,1726488722540,-500.0,0.00014977,2]
[338311305,1726488722549,-519.24,0.00014977,2]
[338311306,1726488722558,-519.24,0.00014977,2]
[338311307,1726488722567,-519.24,0.00014977,2]
[338311308,1726488722576,-519.24,0.00014977,2]
[338311309,1726488722586,-519.2753626,0.00014977,2]
[338311310,1726488722595,-536.06,0.00014977,2]
[338311311,1726488722604,-500.0,0.00014977,2]
[338311312,1726488722613,-500.0,0.00014977,2]
[338311313,1726488722622,-500.0,0.00014977,2]
[338311314,1726488722631,-500.0,0.00014977,2]
[338311315,1726488722639,-519.45,0.00014977,2]
[338311316,1726488722648,-519.45,0.00014977,2]
[338311317,1726488722657,-500.0,0.00014977,2]
[338311318,1726488722667,-500.0,0.00014977,2]
[338311319,1726488722676,-267.75389272,0.00014977,2]
[338311320,1726488722685,-500.0,0.00014977,2]
[338311321,1726488722694,-500.0,0.00014977,2]
[338311322,1726488722703,-500.0,0.00014977,2]
[338311323,1726488722711,-500.0,0.00014977,2]
[338311324,1726488722721,-372.55301519,0.00014977,2]
[338311325,1726488722730,-501.76,0.00014977,2]
[338311326,1726488722739,-501.76,0.00014977,2]
[338311327,1726488722747,-501.76,0.00014977,2]
[338311328,1726488722757,-501.76,0.00014977,2]
[338311329,1726488722766,-501.83618936,0.00014977,2]
[338311330,1726488722775,-500.0,0.00014977,2]
[338311331,1726488722784,-500.0,0.00014977,2]
[338311332,1726488722793,-500.0,0.00014977,2]
[338311333,1726488722802,-334.58825114,0.00014977,2]
[338311334,1726488722811,-534.27,0.00014977,2]
[338311335,1726488722820,-534.27,0.00014977,2]
[338311336,1726488722829,-534.27,0.00014977,2]
[338311337,1726488722838,-534.27,0.00014977,2]
[338311338,1726488722847,-534.35677576,0.00014977,2]
[338311339,1726488722856,-150.0,0.00014977,2]
[338311340,1726488722865,-249394.02275,0.00014978,2]
[338311341,1726488722875,-1121.17,0.00014978,2]
[338311342,1726488722884,-500.0,0.00014978,2]
[338311343,1726488722894,-523.46,0.00014978,2]
[338311344,1726488722903,-1711.04,0.00014978,2]
[338311345,1726488722911,-948.25,0.00014978,2]
[338311346,1726488722920,-500.0,0.00014978,2]
[338311347,1726488722929,-500.0,0.00014978,2]
[338311348,1726488722938,-500.0,0.00014978,2]
[338311349,1726488722947,-575.27,0.00014978,2]
[338311350,1726488722956,-1398.3,0.00014978,2]
[338311351,1726488722965,-1398.3,0.00014978,2]
[338311352,1726488722975,-1398.3,0.00014978,2]
[338311353,1726488722983,-1398.3,0.00014978,2]
[338311354,1726488722992,-1398.3,0.00014978,2]
[338311355,1726488723001,-1083.51,0.00014978,2]
[338311356,1726488723010,-1083.51,0.00014978,2]
[338311357,1726488723020,-1083.51,0.00014978,2]
[338311358,1726488723030,-1083.51,0.00014978,2]
[338311359,1726488723039,-1083.57377286,0.00014978,2]
[338311360,1726488723048,-1120.27,0.00014978,2]
[338311361,1726488723057,-788.19,0.00014978,2]
[338311362,1726488723066,-570.82,0.00014978,2]
[338311363,1726488723075,-426.76638891,0.00014978,2]
[338311364,1726488723084,-500.0,0.00014978,2]
[338311365,1726488723094,-500.0,0.00014978,2]
[338311366,1726488723103,-500.0,0.00014978,2]
[338311367,1726488723112,-435.95670184,0.00014978,2]
[338311368,1726488723122,-802.86,0.00014978,2]
[338311369,1726488723131,-1633.26,0.00014978,2]
[338311370,1726488723140,-2887.15,0.00014978,2]
[338311371,1726488723149,-693.52,0.00014978,2]
[338311372,1726488723159,-2640.09,0.00014978,2]
[338311373,1726488723169,-643.47,0.00014978,2]
[338311374,1726488723179,-643.47,0.00014978,2]
[338311375,1726488723189,-643.47,0.00014978,2]
[338311376,1726488723199,-643.47,0.00014978,2]
[338311377,1726488723208,-643.48,0.00014978,2]
[338311378,1726488723218,-1209.6,0.00014978,2]
[338311379,1726488723227,-1209.6,0.00014978,2]
[338311380,1726488723237,-1209.6,0.00014978,2]
[338311381,1726488723246,-1209.6,0.00014978,2]
[338311382,1726488723255,-1209.81453461,0.00014978,2]
[338311383,1726488723265,-1190.85,0.00014978,2]
[338311384,1726488723274,-1190.85,0.00014978,2]
[338311385,1726488723284,-1190.85,0.00014978,2]
[338311386,1726488723293,-1190.85,0.00014978,2]
[338311387,1726488723303,-1191.05973407,0.00014978,2]
[338311388,1726488723326,-500.0,0.00014978,2]
[338311389,1726488723345,-500.0,0.00014978,2]
[338311390,1726488723366,-500.0,0.00014978,2]
[338311391,1726488723387,-409.04201365,0.00014978,2]
[338311392,1726488723406,-764.13,0.00014979,2]
[338311393,1726488723426,-814.16,0.00014979,2]
[338311394,1726488723443,-500.0,0.00014979,2]
[338311395,1726488723460,-500.0,0.00014979,2]
[338311396,1726488723478,-501.08,0.00014979,2]
[338311397,1726488723501,-741.66,0.00014979,2]
[338311398,1726488723515,-741.66,0.00014979,2]
[338311399,1726488723533,-1074.56,0.00014979,2]
[338311400,1726488723549,-500.0,0.00014979,2]
[338311401,1726488723569,-632.7,0.00014979,2]
[338311402,1726488723585,-963.77,0.00014979,2]
[338311403,1726488723605,-1268.0,0.00014979,2]
[338311404,1726488723621,-985.31,0.00014979,2]
[338311405,1726488723637,-1632.74,0.00014979,2]
[338311406,1726488723655,-1632.74,0.00014979,2]
[338311407,1726488723671,-550.81,0.00014979,2]
[338311408,1726488723687,-696.54,0.00014979,2]
[338311409,1726488723703,-695.92,0.00014979,2]
[338311410,1726488723719,-572.82,0.00014979,2]
[338311411,1726488723735,-572.82,0.00014979,2]
[338311412,1726488723752,-1018.72,0.00014979,2]
[338311413,1726488723769,-439.74821904,0.00014979,2]
[338311414,1726488723785,-614.96,0.00014979,2]
[338311415,1726488723802,-1830.89,0.00014979,2]
[338311416,1726488723816,-599.52,0.00014979,2]
[338311417,1726488723832,-1476.78,0.00014979,2]
[338311418,1726488723849,-500.0,0.00014979,2]
[338311419,1726488723864,-697.04,0.00014979,2]
[338311420,1726488723880,-246.25,0.00014979,2]
[338311421,1726488723896,-500.0,0.00014979,2]
[338311422,1726488723912,-1972.93,0.00014979,2]
[338311423,1726488723933,-838.98,0.00014979,2]
[338311424,1726488723949,-529.28,0.00014979,2]
[338311425,1726488723965,-2096.77,0.00014979,2]
[338311426,1726488723980,-1298.33,0.00014979,2]
[338311427,1726488723998,-855.84,0.00014979,2]
[338311428,1726488724013,-958.01,0.00014979,2]
[338311429,1726488724029,-500.0,0.00014979,2]
[338311430,1726488724044,-738.4,0.00014979,2]
[338311431,1726488724060,-1079.96,0.00014979,2]
[338311432,1726488724076,-1220.58,0.00014979,2]
[338311433,1726488724093,-1922.93,0.00014979,2]
[338311434,1726488724111,-1803.99,0.00014979,2]
[338311435,1726488724126,-653.89,0.00014979,2]
[338311436,1726488724142,-455.01594781,0.00014979,2]
[338311437,1726488724158,-1305.56,0.00014979,2]
[338311438,1726488724174,-559.8,0.00014979,2]
[338311439,1726488724191,-593.92,0.00014979,2]
[338311440,1726488724207,-158.91531792,0.00014979,2]
[338311441,1726488724224,-500.0,0.00014979,2]
[338311442,1726488724240,-2126.66,0.00014979,2]
[338311443,1726488724254,-987.65,0.00014979,2]
[338311444,1726488724270,-1158.6,0.00014979,2]
[338311445,1726488724286,-1121.25,0.00014979,2]
[338311446,1726488724302,-1606.57,0.00014979,2]
[338311447,1726488724318,-527.3,0.00014979,2]
[338311448,1726488724334,-588.83,0.00014979,2]
[338311449,1726488724350,-500.0,0.00014979,2]
[338311450,1726488724366,-1574.61,0.00014979,2]
[338311451,1726488724405,-500.0,0.00014979,2]
[338311452,1726488724435,-904.58,0.00014979,2]
[338311453,1726488724457,-761.46,0.00014979,2]
[338311454,1726488724478,-956.4,0.00014979,2]
[338311455,1726488724501,-744.3,0.00014979,2]
[338311456,1726488724520,-1071.44,0.00014979,2]
[338311457,1726488724541,-820.43,0.00014979,2]
[338311458,1726488724559,-1121.17,0.00014979,2]
[338311459,1726488724577,-500.0,0.00014979,2]
[338311460,1726488724597,-884.32,0.00014979,2]
[338311461,1726488724614,-1505.11,0.00014979,2]
[338311462,1726488724632,-523.46,0.00014979,2]
[338311463,1726488724651,-500.0,0.00014979,2]
[338311464,1726488724667,-1711.04,0.00014979,2]
[338311465,1726488724685,-2308.22,0.00014979,2]
[338311466,1726488724703,-1187.84,0.00014979,2]
[338311467,1726488724720,-1312.73,0.00014979,2]
[338311468,1726488724736,-1663.14,0.00014979,2]
[338311469,1726488724761,-948.25,0.00014979,2]
[338311470,1726488724789,-500.0,0.00014979,2]
[338311471,1726488724815,-507.72,0.00014979,2]
[338311472,1726488724838,-878.06,0.00014979,2]
[338311473,1726488724859,-581.61,0.00014979,2]
[338311474,1726488724881,-665.63,0.00014979,2]
[338311475,1726488724902,-2204.4,0.00014979,2]
[338311476,1726488724922,-567.91,0.00014979,2]
[338311477,1726488725209,-500.0,0.00014979,2]
[338311478,1726488725221,-500.0,0.00014979,2]
[338311479,1726488725230,-1120.27,0.00014979,2]
[338311480,1726488725239,-750.31,0.00014979,2]
[338311481,1726488725248,-788.19,0.00014979,2]
[338311482,1726488725257,-532.45,0.00014979,2]
[338311483,1726488725267,-570.82,0.00014979,2]
[338311484,1726488725275,-511.84,0.00014979,2]
[338311485,1726488725285,-501.61,0.00014979,2]
[338311486,1726488725295,-545.11,0.00014979,2]
[338311487,1726488725307,-610.14,0.00014979,2]
[338311488,1726488725316,-802.86,0.00014979,2]
[338311489,1726488725325,-1459.96,0.00014979,2]
[338311490,1726488725334,-1633.26,0.00014979,2]
[338311491,1726488725343,-2887.15,0.00014979,2]
[338311492,1726488725351,-1935.28,0.00014979,2]
[338311493,1726488725361,-693.52,0.00014979,2]
[338311494,1726488725370,-2640.09,0.00014979,2]
[338311495,1726488725378,-583.11,0.00014979,2]
[338311496,1726488725388,-500.0,0.00014979,2]
[338311497,1726488725397,-500.0,0.00014979,2]
[338311498,1726488725407,-500.0,0.00014979,2]
[338311499,1726488725416,-677.08,0.00014979,2]
[338311500,1726488725425,-500.0,0.00014979,2]
[338311501,1726488725434,-500.0,0.00014979,2]
[338311502,1726488725443,-500.0,0.00014979,2]
[338311503,1726488725452,-500.0,0.00014979,2]
[338311504,1726488725462,-536.06,0.00014979,2]
[338311505,1726488725470,-500.0,0.00014979,2]
[338311506,1726488725480,-500.0,0.00014979,2]
[338311507,1726488725489,-519.45,0.00014979,2]
[338311508,1726488725498,-111150.92689937,0.0001498,2]
[338311509,1726488725507,-600.14112767,0.0001498,2]
[338311510,1726488725517,-3626.65806109,0.0001498,2]
[338311511,1726488725531,-155873.46370839,0.0001498,2]
[338311512,1726488725540,-150.0,0.00014984,2]
[338311513,1726488725551,-52190.68069859,0.00014989,2]
[338311514,1726488725560,-1830.89,0.00014989,2]
[338311515,1726488725570,-599.52,0.00014989,2]
[338311516,1726488725579,-1476.78,0.00014989,2]
[338311517,1726488725589,-838.98,0.00014989,2]
[338311518,1726488725599,-529.28,0.00014989,2]
[338311519,1726488725610,-1298.33,0.00014989,2]
[338311520,1726488725619,-738.4,0.00014989,2]
[338311521,1726488725629,-1922.93,0.00014989,2]
[338311522,1726488725639,-653.89,0.00014989,2]
[338311523,1726488725649,-1305.56,0.00014989,2]
[338311524,1726488725659,-559.8,0.00014989,2]
[338311525,1726488725668,-500.0,0.00014989,2]
[338311526,1726488725678,-1158.6,0.00014989,2]
[338311527,1726488725687,-500.0,0.00014989,2]
[338311528,1726488725698,-904.58,0.00014989,2]
[338311529,1726488725707,-744.3,0.00014989,2]
[338311530,1726488725717,-1071.44,0.00014989,2]
[338311531,1726488725726,-820.43,0.00014989,2]
[338311532,1726488725736,-884.32,0.00014989,2]
[338311533,1726488725746,-500.0,0.00014989,2]
[338311534,1726488725756,-2308.22,0.00014989,2]
[338311535,1726488725766,-1187.84,0.00014989,2]
[338311536,1726488725775,-1312.73,0.00014989,2]
[338311537,1726488725785,-1663.14,0.00014989,2]
[338311538,1726488725794,-500.0,0.00014989,2]
[338311539,1726488725806,-507.72,0.00014989,2]
[338311540,1726488725815,-581.61,0.00014989,2]
[338311541,1726488725824,-665.63,0.00014989,2]
[338311542,1726488725834,-2204.4,0.00014989,2]
[338311543,1726488725843,-567.91,0.00014989,2]
[338311544,1726488725853,-500.0,0.00014989,2]
[338311545,1726488725862,-750.31,0.00014989,2]
[338311546,1726488725872,-501.61,0.00014989,2]
[338311547,1726488725881,-545.11,0.00014989,2]
[338311548,1726488725891,-610.14,0.00014989,2]
[338311549,1726488725901,-500.0,0.00014989,2]
[338311550,1726488725911,-500.0,0.00014989,2]
[338311551,1726488725924,-677.08,0.00014989,2]
[338311552,1726488725933,-503.35056245,0.00014989,2]
[338311553,1726488725943,-500.0,0.00014989,2]
[338311554,1726488725953,-500.0,0.00014989,2]
[338311555,1726488725963,-500.0,0.00014989,2]
[338311556,1726488725975,-536.06,0.00014989,2]
[338311557,1726488725985,-1049.3759526,0.0001499,5]
[338311558,1726488725996,-2000.0,0.0001499,2]
[338311559,1726488726005,-31712.02070695,0.0001499,2]
[338311560,1726488726014,-764.13,0.00014994,2]
[338311561,1726488726023,-814.16,0.00014994,2]
[338311562,1726488726033,-500.0,0.00014994,2]
[338311563,1726488726042,-392.57059077,0.00014994,2]
[338311564,1726488726051,-501.08,0.00014994,2]
[338311565,1726488726061,-1074.56,0.00014994,2]
[338311566,1726488726070,-500.0,0.00014994,2]
[338311567,1726488726079,-632.7,0.00014994,2]
[338311568,1726488726089,-963.77,0.00014994,2]
[338311569,1726488726098,-1268.0,0.00014994,2]
[338311570,1726488726108,-985.31,0.00014994,2]
[338311571,1726488726117,-550.81,0.00014994,2]
[338311572,1726488726126,-696.54,0.00014994,2]
[338311573,1726488726135,-695.92,0.00014994,2]
[338311574,1726488726145,-1018.72,0.00014994,2]
[338311575,1726488726154,-614.96,0.00014994,2]
[338311576,1726488726163,-500.0,0.00014994,2]
[338311577,1726488726173,-527.3,0.00014994,2]
[338311578,1726488726183,-956.4,0.00014994,2]
[338311579,1726488726192,-1505.11,0.00014994,2]
[338311580,1726488726201,-90285.35,0.00014995,2]
[338311581,1726488726210,-1121.17,0.00014996,2]
[338311582,1726488726220,-1121.17,0.00014996,2]
[338311583,1726488726229,-1121.17,0.00014996,2]
[338311584,1726488726239,-1121.17,0.00014996,2]
[338311585,1726488726248,-1121.320211,0.00014996,2]
[338311586,1726488726257,-384.73679676,0.00014996,2]
[338311587,1726488726266,-523.46,0.00014996,2]
[338311588,1726488726276,-523.46,0.00014996,2]
[338311589,1726488726285,-523.46,0.00014996,2]
[338311590,1726488726294,-523.46,0.00014996,2]
[338311591,1726488726304,-523.60512257,0.00014996,2]
[338311592,1726488726314,-1711.04,0.00014996,2]
[338311593,1726488726323,-1711.04,0.00014996,2]
[338311594,1726488726332,-1711.04,0.00014996,2]
[338311595,1726488726341,-1711.04,0.00014996,2]
[338311596,1726488726350,-1711.10118576,0.00014996,2]
[338311597,1726488726359,-948.25,0.00014996,2]
[338311598,1726488726369,-948.25,0.00014996,2]
[338311599,1726488726378,-948.25,0.00014996,2]
[338311600,1726488726387,-948.25,0.00014996,2]
[338311601,1726488726397,-948.38849041,0.00014996,2]
[338311602,1726488726406,-1120.27,0.00014996,2]
[338311603,1726488726415,-1120.27,0.00014996,2]
[338311604,1726488726425,-1120.27,0.00014996,2]
[338311605,1726488726434,-1120.27,0.00014996,2]
[338311606,1726488726443,-1120.47514655,0.00014996,2]
[338311607,1726488726453,-788.19,0.00014996,2]
[338311608,1726488726463,-788.19,0.00014996,2]
[338311609,1726488726472,-788.19,0.00014996,2]
[338311610,1726488726482,-788.19,0.00014996,2]
[338311611,1726488726493,-788.28663039,0.00014996,2]
[338311612,1726488726502,-570.82,0.00014996,2]
[338311613,1726488726522,-570.82,0.00014996,2]
[338311614,1726488726533,-570.82,0.00014996,2]
[338311615,1726488726542,-570.82,0.00014996,2]
[338311616,1726488726554,-571.04,0.00014996,2]
[338311617,1726488726564,-802.86,0.00014996,2]
[338311618,1726488726577,-802.86,0.00014996,2]
[338311619,1726488726587,-802.86,0.00014996,2]
[338311620,1726488726597,-802.86,0.00014996,2]
[338311621,1726488726606,-802.9511586,0.00014996,2]
[338311622,1726488726616,-1633.26,0.00014996,2]
[338311623,1726488726626,-1633.26,0.00014996,2]
[338311624,1726488726636,-1633.26,0.00014996,2]
[338311625,1726488726646,-1633.26,0.00014996,2]
[338311626,1726488726656,-1633.39234715,0.00014996,2]
[338311627,1726488726665,-2887.15,0.00014996,2]
[338311628,1726488726675,-2887.15,0.00014996,2]
[338311629,1726488726684,-2887.15,0.00014996,2]
[338311630,1726488726694,-2887.15,0.00014996,2]
[338311631,1726488726704,-2887.32076402,0.00014996,2]
[338311632,1726488726714,-693.52,0.00014996,2]
[338311633,1726488726724,-693.52,0.00014996,2]
[338311634,1726488726734,-693.52,0.00014996,2]
[338311635,1726488726744,-693.52,0.00014996,2]
[338311636,1726488726755,-693.71945891,0.00014996,2]
[338311637,1726488726765,-2640.09,0.00014996,2]
[338311638,1726488726775,-2640.09,0.00014996,2]
[338311639,1726488726785,-2640.09,0.00014996,2]
[338311640,1726488726795,-2640.09,0.00014996,2]
[338311641,1726488726807,-2640.13320705,0.00014996,2]
[338311642,1726488726816,-697.04,0.00014997,2]
[338311643,1726488726826,-1972.93,0.00014997,2]
[338311644,1726488726835,-2096.77,0.00014997,2]
[338311645,1726488726844,-855.84,0.00014997,2]
[338311646,1726488726854,-958.01,0.00014997,2]
[338311647,1726488726864,-500.0,0.00014997,2]
[338311648,1726488726873,-1079.96,0.00014997,2]
[338311649,1726488726883,-1220.58,0.00014997,2]
[338311650,1726488726893,-1803.99,0.00014997,2]
[338311651,1726488726902,-593.92,0.00014997,2]
[338311652,1726488726912,-2126.66,0.00014997,2]
[338311653,1726488726922,-987.65,0.00014997,2]
[338311654,1726488726931,-1121.25,0.00014997,2]
[338311655,1726488726941,-1606.57,0.00014997,2]
[338311656,1726488726950,-588.83,0.00014997,2]
[338311657,1726488726960,-1574.61,0.00014997,2]
[338311658,1726488726970,-502.50570365,0.00014997,2]
[338311659,1726488726979,-761.46,0.00014997,2]
[338311660,1726488726988,-878.06,0.00014997,2]
[338311661,1726488726998,-500.0,0.00014997,2]
[338311662,1726488727008,-532.45,0.00014997,2]
[338311663,1726488727017,-511.84,0.00014997,2]
[338311664,1726488727026,-1459.96,0.00014997,2]
[338311665,1726488727035,-1935.28,0.00014997,2]
[338311666,1726488727046,-583.11,0.00014997,2]
[338311667,1726488727058,-500.0,0.00014997,2]
[338311668,1726488727067,-500.0,0.00014997,2]
[338311669,1726488727077,-500.0,0.00014997,2]
[338311670,1726488727086,-519.45,0.00014997,2]
[338311671,1726488727095,-9429.61894903,0.00014998,2]
[338311672,1726488727105,-741.66,0.00014998,2]
[338311673,1726488727114,-1632.74,0.00014998,2]
[338311674,1726488727123,-572.82,0.00014998,2]
[338311675,1726488727132,-1830.89,0.00014998,2]
[338311676,1726488727141,-599.52,0.00014998,2]
[338311677,1726488727151,-1476.78,0.00014998,2]
[338311678,1726488727160,-697.04,0.00014998,2]
[338311679,1726488727170,-1972.93,0.00014998,2]
[338311680,1726488727179,-838.98,0.00014998,2]
[338311681,1726488727189,-529.28,0.00014998,2]
[338311682,1726488727199,-2096.77,0.00014998,2]
[338311683,1726488727208,-1298.33,0.00014998,2]
[338311684,1726488727222,-855.84,0.00014998,2]
[338311685,1726488727232,-958.01,0.00014998,2]
[338311686,1726488727242,-500.0,0.00014998,2]
[338311687,1726488727251,-738.4,0.00014998,2]
[338311688,1726488727261,-1079.96,0.00014998,2]
[338311689,1726488727270,-1220.58,0.00014998,2]
[338311690,1726488727280,-1922.93,0.00014998,2]
[338311691,1726488727289,-1803.99,0.00014998,2]
[338311692,1726488727299,-653.89,0.00014998,2]
[338311693,1726488727309,-1305.56,0.00014998,2]
[338311694,1726488727319,-559.8,0.00014998,2]
[338311695,1726488727329,-593.92,0.00014998,2]
[338311696,1726488727339,-500.0,0.00014998,2]
[338311697,1726488727348,-2126.66,0.00014998,2]
[338311698,1726488727357,-987.65,0.00014998,2]
[338311699,1726488727367,-1158.6,0.00014998,2]
[338311700,1726488727376,-1121.25,0.00014998,2]
[338311701,1726488727386,-1606.57,0.00014998,2]
[338311702,1726488727395,-588.83,0.00014998,2]
[338311703,1726488727405,-500.0,0.00014998,2]
[338311704,1726488727415,-1574.61,0.00014998,2]
[338311705,1726488727424,-904.58,0.00014998,2]
[338311706,1726488727434,-761.46,0.00014998,2]
[338311707,1726488727443,-744.3,0.00014998,2]
[338311708,1726488727453,-1071.44,0.00014998,2]
[338311709,1726488727462,-820.43,0.00014998,2]
[338311710,1726488727472,-884.32,0.00014998,2]
[338311711,1726488727482,-389.16,0.00014998,2]
[338311712,1726488727491,-2308.22,0.00014998,2]
[338311713,1726488727501,-1187.84,0.00014998,2]
[338311714,1726488727510,-1312.73,0.00014998,2]
[338311715,1726488727520,-1663.14,0.00014998,2]
[338311716,1726488727530,-500.0,0.00014998,2]
[338311717,1726488727539,-507.72,0.00014998,2]
[338311718,1726488727549,-878.06,0.00014998,2]
[338311719,1726488727559,-581.61,0.00014998,2]
[338311720,1726488727568,-665.63,0.00014998,2]
[338311721,1726488727577,-2204.4,0.00014998,2]
[338311722,1726488727587,-567.91,0.00014998,2]
[338311723,1726488727596,-500.0,0.00014998,2]
[338311724,1726488727606,-500.0,0.00014998,2]
[338311725,1726488727615,-750.31,0.00014998,2]
[338311726,1726488727625,-532.45,0.00014998,2]
[338311727,1726488727634,-511.84,0.00014998,2]
[338311728,1726488727644,-501.61,0.00014998,2]
[338311729,1726488727653,-545.11,0.00014998,2]
[338311730,1726488727662,-610.14,0.00014998,2]
[338311731,1726488727672,-1459.96,0.00014998,2]
[338311732,1726488727681,-1935.28,0.00014998,2]
[338311733,1726488727691,-583.11,0.00014998,2]
[338311734,1726488727701,-375.15201612,0.00014998,2]
[338311735,1726488727711,-500.0,0.00014998,2]
[338311736,1726488727721,-500.0,0.00014998,2]
[338311737,1726488727731,-677.08,0.00014998,2]
[338311738,1726488727743,-500.0,0.00014998,2]
[338311739,1726488727752,-500.0,0.00014998,2]
[338311740,1726488727762,-500.0,0.00014998,2]
[338311741,1726488727771,-536.06,0.00014998,2]
[338311742,1726488727781,-500.0,0.00014998,2]
[338311743,1726488727790,-500.0,0.00014998,2]
[338311744,1726488727799,-519.45,0.00014998,2]
[338311745,1726488727810,-12665.22086392,0.00014999,2]
[338311746,1726488727819,-7523.59437016,0.00014999,2]
[338311747,1726488727829,-5455.76830868,0.00014999,2]